[Event "*** SCC Grand Prix: Titled Tuesday Blitz"]
[Site "Chess.com"]
[Date "2020.08.04"]
[Round "1"]
[White "LyonBeast"]
[Black "bazar-wokzal"]
[Result "1-0"]
[WhiteElo "3030"]
[BlackElo "2473"]
[TimeControl "180+1"]
[EndTime "13:49:46 PDT"]
[Termination "LyonBeast won by resignation"]

1. e4 {[%clk 0:02:58]} 1... Nc6 {[%clk 0:02:58.6]} 2. Nf3 {[%clk 0:02:53.1]}
2... d5 {[%clk 0:02:58.6]} 3. exd5 {[%clk 0:02:50.5]} 3... Qxd5 {[%clk
0:02:59.5]} 4. Be2 {[%clk 0:02:50.9]} 4... Bg4 {[%clk 0:02:58.7]} 5. O-O {[%clk
0:02:47.1]} 5... O-O-O {[%clk 0:02:58.8]} 6. h3 {[%clk 0:02:45.7]} 6... Bh5
{[%clk 0:02:58.3]} 7. d3 {[%clk 0:02:42.4]} 7... Nf6 {[%clk 0:02:57.6]} 8. Be3
{[%clk 0:02:35.6]} 8... e5 {[%clk 0:02:54.6]} 9. Nbd2 {[%clk 0:02:35.8]} 9...
Bc5 {[%clk 0:02:35.2]} 10. Bxc5 {[%clk 0:02:25.7]} 10... Qxc5 {[%clk 0:02:35.1]}
11. c3 {[%clk 0:02:26.6]} 11... Rhe8 {[%clk 0:02:13]} 12. Ng5 {[%clk 0:02:20.5]}
12... Bg6 {[%clk 0:02:11.5]} 13. Qa4 {[%clk 0:02:13.8]} 13... Bxd3 {[%clk
0:02:04.1]} 14. Bxd3 {[%clk 0:02:13.8]} 14... Rxd3 {[%clk 0:02:03.3]} 15. Nde4
{[%clk 0:02:14.2]} 15... Nxe4 {[%clk 0:02:01.6]} 16. Qxe4 {[%clk 0:02:15.1]}
16... Rd2 {[%clk 0:01:59.2]} 17. Qxh7 {[%clk 0:02:10.5]} 17... Rxb2 {[%clk
0:01:53.8]} 18. Qxg7 {[%clk 0:02:10.6]} 18... f5 {[%clk 0:01:30.5]} 19. Qg6
{[%clk 0:02:06.4]} 19... Qf8 {[%clk 0:01:14.5]} 20. Nh7 {[%clk 0:02:05.9]} 20...
Qe7 {[%clk 0:01:08.7]} 21. Qxf5+ {[%clk 0:02:05.6]} 21... Kb8 {[%clk 0:01:09.3]}
22. Nf6 {[%clk 0:02:05.4]} 22... Rd8 {[%clk 0:01:04.1]} 23. Ne4 {[%clk
0:02:05.3]} 23... a5 {[%clk 0:01:00]} 24. Rfb1 {[%clk 0:02:03.8]} 24... Rc2
{[%clk 0:00:55.2]} 25. Nc5 {[%clk 0:01:59.6]} 25... Qxc5 {[%clk 0:00:52.9]} 26.
Qxc2 {[%clk 0:01:59.5]} 26... Nd4 {[%clk 0:00:44.8]} 27. Qb2 {[%clk 0:01:58]}
27... Qd5 {[%clk 0:00:40.5]} 28. cxd4 {[%clk 0:01:56.7]} 28... Rg8 {[%clk
0:00:40.6]} 29. Qxb7+ {[%clk 0:01:56.7]} 29... Qxb7 {[%clk 0:00:40]} 30. Rxb7+
{[%clk 0:01:57.6]} 30... Kxb7 {[%clk 0:00:40.8]} 31. dxe5 {[%clk 0:01:58.5]} 1-0

[Event "*** SCC Grand Prix: Titled Tuesday Blitz"]
[Site "Chess.com"]
[Date "2020.08.04"]
[Round "1"]
[White "diablanni"]
[Black "XDPS"]
[Result "0-1"]
[WhiteElo "2311"]
[BlackElo "2674"]
[TimeControl "180+1"]
[EndTime "13:49:49 PDT"]
[Termination "XDPS won by resignation"]

1. e4 {[%clk 0:03:00]} 1... c5 {[%clk 0:02:59.3]} 2. Nf3 {[%clk 0:02:59.7]} 2...
e6 {[%clk 0:02:59.6]} 3. d4 {[%clk 0:02:52.5]} 3... cxd4 {[%clk 0:03:00.5]} 4.
Nxd4 {[%clk 0:02:48.1]} 4... a6 {[%clk 0:03:00.5]} 5. c4 {[%clk 0:02:47.7]} 5...
Nf6 {[%clk 0:02:57.3]} 6. Nc3 {[%clk 0:02:46.8]} 6... Qc7 {[%clk 0:02:57.4]} 7.
a3 {[%clk 0:02:46.4]} 7... d6 {[%clk 0:02:54.9]} 8. Be2 {[%clk 0:02:44.3]} 8...
b6 {[%clk 0:02:54.9]} 9. Be3 {[%clk 0:02:44.7]} 9... Bb7 {[%clk 0:02:55.3]} 10.
f3 {[%clk 0:02:44.9]} 10... Nbd7 {[%clk 0:02:55.8]} 11. O-O {[%clk 0:02:43.5]}
11... Be7 {[%clk 0:02:56.4]} 12. Rc1 {[%clk 0:02:43]} 12... O-O {[%clk
0:02:56.1]} 13. b4 {[%clk 0:02:42.6]} 13... Rac8 {[%clk 0:02:55.3]} 14. Qd2
{[%clk 0:02:42.8]} 14... Qb8 {[%clk 0:02:55.4]} 15. Rc2 {[%clk 0:02:41.7]} 15...
h5 {[%clk 0:02:55.3]} 16. Rb1 {[%clk 0:02:39.4]} 16... h4 {[%clk 0:02:50.3]} 17.
h3 {[%clk 0:02:36.4]} 17... Ne5 {[%clk 0:02:48.7]} 18. Na4 {[%clk 0:02:35.5]}
18... Bd8 {[%clk 0:02:36.2]} 19. Bg5 {[%clk 0:02:29.4]} 19... Bxe4 {[%clk
0:02:01.3]} 20. Bxf6 {[%clk 0:02:26.8]} 20... Bxc2 {[%clk 0:02:01]} 21. Bxd8
{[%clk 0:02:26.3]} 21... Bxb1 {[%clk 0:02:00.1]} 22. Bxh4 {[%clk 0:02:07.5]}
22... Nxc4 {[%clk 0:01:58.2]} 23. Qc1 {[%clk 0:01:23.1]} 23... Bg6 {[%clk
0:01:55.3]} 24. Bg3 {[%clk 0:00:55.2]} 24... b5 {[%clk 0:01:54.4]} 25. Nc3
{[%clk 0:00:54.2]} 25... Ne5 {[%clk 0:01:44]} 26. Qe3 {[%clk 0:00:48.1]} 26...
Qc7 {[%clk 0:01:42.7]} 27. Ne4 {[%clk 0:00:45.4]} 27... Qc1+ {[%clk 0:01:42.4]}
0-1

[Event "*** SCC Grand Prix: Titled Tuesday Blitz"]
[Site "Chess.com"]
[Date "2020.08.04"]
[Round "1"]
[White "Jospem"]
[Black "Sekar24"]
[Result "1-0"]
[WhiteElo "2931"]
[BlackElo "2454"]
[TimeControl "180+1"]
[EndTime "13:49:53 PDT"]
[Termination "Jospem won by resignation"]

1. e4 {[%clk 0:03:00.9]} 1... c5 {[%clk 0:02:59.4]} 2. Nf3 {[%clk 0:03:00.9]}
2... d6 {[%clk 0:02:59.8]} 3. d4 {[%clk 0:03:01.6]} 3... cxd4 {[%clk 0:03:00.7]}
4. Nxd4 {[%clk 0:03:02.5]} 4... Nf6 {[%clk 0:03:01.1]} 5. Nc3 {[%clk 0:03:03.2]}
5... a6 {[%clk 0:03:01.7]} 6. Be2 {[%clk 0:03:03.6]} 6... e5 {[%clk 0:03:01.4]}
7. Nf3 {[%clk 0:03:04.2]} 7... Be7 {[%clk 0:02:53.7]} 8. Bg5 {[%clk 0:03:03.9]}
8... Be6 {[%clk 0:02:52.8]} 9. Bxf6 {[%clk 0:03:03]} 9... Bxf6 {[%clk
0:02:53.1]} 10. Nd5 {[%clk 0:03:03.6]} 10... O-O {[%clk 0:02:53]} 11. Bc4 {[%clk
0:03:02.1]} 11... Nd7 {[%clk 0:02:49.6]} 12. O-O {[%clk 0:02:58.3]} 12... b5
{[%clk 0:02:48.7]} 13. Bb3 {[%clk 0:02:52]} 13... Be7 {[%clk 0:02:41.6]} 14. c3
{[%clk 0:02:47.1]} 14... Nb6 {[%clk 0:02:38.4]} 15. Nxb6 {[%clk 0:02:43.2]}
15... Qxb6 {[%clk 0:02:37.2]} 16. Qd3 {[%clk 0:02:36.3]} 16... Rac8 {[%clk
0:02:30.4]} 17. Rfe1 {[%clk 0:02:27.5]} 17... Bc4 {[%clk 0:02:29.9]} 18. Bxc4
{[%clk 0:02:26.2]} 18... Rxc4 {[%clk 0:02:29]} 19. Nd2 {[%clk 0:02:20.1]} 19...
Rc6 {[%clk 0:02:22.4]} 20. Rad1 {[%clk 0:02:20.4]} 20... Rd8 {[%clk 0:02:14.5]}
21. Nf1 {[%clk 0:02:20.2]} 21... Bg5 {[%clk 0:02:12]} 22. Qe2 {[%clk 0:02:16]}
22... Kf8 {[%clk 0:02:03.6]} 23. Rd3 {[%clk 0:02:08.3]} 23... b4 {[%clk
0:01:54.3]} 24. c4 {[%clk 0:02:02.1]} 24... Rxc4 {[%clk 0:01:42.5]} 25. Rg3
{[%clk 0:01:39.7]} 25... Rdc8 {[%clk 0:01:25.1]} 26. Rxg5 {[%clk 0:01:35.8]}
26... Rc2 {[%clk 0:01:25.4]} 27. Qf3 {[%clk 0:01:35]} 27... Rxb2 {[%clk
0:01:25.1]} 28. Ne3 {[%clk 0:01:30.3]} 28... Rxa2 {[%clk 0:01:19.3]} 29. Rxg7
{[%clk 0:01:23.6]} 29... Kxg7 {[%clk 0:01:13.7]} 30. Qg4+ {[%clk 0:01:23.4]} 1-0

[Event "*** SCC Grand Prix: Titled Tuesday Blitz"]
[Site "Chess.com"]
[Date "2020.08.04"]
[Round "1"]
[White "12teen"]
[Black "51616516516"]
[Result "1-0"]
[WhiteElo "2652"]
[BlackElo "2296"]
[TimeControl "180+1"]
[EndTime "13:49:56 PDT"]
[Termination "12teen won by resignation"]

1. g3 {[%clk 0:02:57.7]} 1... Nf6 {[%clk 0:02:59.5]} 2. Bg2 {[%clk 0:02:58.6]}
2... g6 {[%clk 0:03:00]} 3. e4 {[%clk 0:02:56.3]} 3... d6 {[%clk 0:02:50.7]} 4.
Nc3 {[%clk 0:02:55.4]} 4... c5 {[%clk 0:02:49.8]} 5. f4 {[%clk 0:02:55.1]} 5...
Bg7 {[%clk 0:02:48.7]} 6. d3 {[%clk 0:02:55.1]} 6... Nc6 {[%clk 0:02:48.1]} 7.
h3 {[%clk 0:02:55.4]} 7... O-O {[%clk 0:02:47.2]} 8. g4 {[%clk 0:02:54.8]} 8...
e6 {[%clk 0:02:31.7]} 9. Nf3 {[%clk 0:02:54.4]} 9... Rb8 {[%clk 0:02:24.8]} 10.
Ne2 {[%clk 0:02:54.5]} 10... e5 {[%clk 0:02:04.9]} 11. f5 {[%clk 0:02:54.4]}
11... d5 {[%clk 0:02:04.4]} 12. g5 {[%clk 0:02:19.4]} 12... Nh5 {[%clk 0:02:04]}
13. f6 {[%clk 0:02:19]} 13... Bh8 {[%clk 0:02:04.2]} 14. exd5 {[%clk 0:02:07]}
14... Qxd5 {[%clk 0:01:59]} 15. Nc3 {[%clk 0:02:06.7]} 15... Qd7 {[%clk
0:01:35]} 16. Ne4 {[%clk 0:02:02.7]} 16... b6 {[%clk 0:01:31.6]} 17. Nh2 {[%clk
0:02:03]} 17... h6 {[%clk 0:01:14.5]} 18. h4 {[%clk 0:02:00.1]} 18... Nd4 {[%clk
0:01:08.2]} 19. c3 {[%clk 0:01:58.5]} 19... Nf5 {[%clk 0:01:00.3]} 20. Ng4
{[%clk 0:01:58.7]} 20... Bb7 {[%clk 0:00:49.3]} 21. O-O {[%clk 0:01:54.6]} 21...
Nxh4 {[%clk 0:00:38.6]} 22. gxh6 {[%clk 0:01:49.8]} 22... Nxg2 {[%clk
0:00:31.8]} 23. h7+ {[%clk 0:01:50.2]} 23... Kxh7 {[%clk 0:00:28.6]} 24. Ng5+
{[%clk 0:01:50.8]} 1-0

[Event "*** SCC Grand Prix: Titled Tuesday Blitz"]
[Site "Chess.com"]
[Date "2020.08.04"]
[Round "1"]
[White "bratkoo"]
[Black "lacafi"]
[Result "1-0"]
[WhiteElo "2506"]
[BlackElo "2026"]
[TimeControl "180+1"]
[EndTime "13:50:01 PDT"]
[Termination "bratkoo won by resignation"]

1. e4 {[%clk 0:03:00.5]} 1... c6 {[%clk 0:02:59.7]} 2. d4 {[%clk 0:02:56.6]}
2... d5 {[%clk 0:03:00.6]} 3. e5 {[%clk 0:02:57.2]} 3... Bf5 {[%clk 0:02:59.9]}
4. Nf3 {[%clk 0:02:57.8]} 4... e6 {[%clk 0:02:59.7]} 5. Be2 {[%clk 0:02:58.4]}
5... Ne7 {[%clk 0:02:56.4]} 6. Nbd2 {[%clk 0:02:58]} 6... c5 {[%clk 0:02:56.6]}
7. dxc5 {[%clk 0:02:57.7]} 7... Nec6 {[%clk 0:02:56]} 8. Nb3 {[%clk 0:02:56.8]}
8... Nd7 {[%clk 0:02:55.4]} 9. Nbd4 {[%clk 0:02:55.7]} 9... Ndxe5 {[%clk
0:02:49.6]} 10. Nxe5 {[%clk 0:02:54]} 10... Nxe5 {[%clk 0:02:48.1]} 11. Bb5+
{[%clk 0:02:54.1]} 11... Nd7 {[%clk 0:02:46.2]} 12. Bxd7+ {[%clk 0:02:37.2]}
12... Qxd7 {[%clk 0:02:44.4]} 13. Nxf5 {[%clk 0:02:37.4]} 13... exf5 {[%clk
0:02:45]} 14. Be3 {[%clk 0:02:27.8]} 14... Be7 {[%clk 0:02:42.4]} 15. Bd4 {[%clk
0:02:27.8]} 15... O-O {[%clk 0:02:41.6]} 16. O-O {[%clk 0:02:27.6]} 16... Qc6
{[%clk 0:02:25.4]} 17. b4 {[%clk 0:02:27.7]} 17... a5 {[%clk 0:02:23.4]} 18. a3
{[%clk 0:02:25.3]} 18... axb4 {[%clk 0:01:32.3]} 19. axb4 {[%clk 0:02:21]} 19...
Rxa1 {[%clk 0:00:38.6]} 20. Qxa1 {[%clk 0:02:18.3]} 20... f6 {[%clk 0:00:37]}
21. Re1 {[%clk 0:02:16.8]} 21... Bd8 {[%clk 0:00:36.1]} 22. Qa2 {[%clk
0:02:14.2]} 22... Bc7 {[%clk 0:00:34.2]} 23. h3 {[%clk 0:02:06.5]} 23... Rd8
{[%clk 0:00:33.4]} 24. Re7 {[%clk 0:02:03.4]} 24... Kf8 {[%clk 0:00:31.4]} 25.
b5 {[%clk 0:01:53.9]} 1-0

[Event "*** SCC Grand Prix: Titled Tuesday Blitz"]
[Site "Chess.com"]
[Date "2020.08.04"]
[Round "1"]
[White "exoticprincess"]
[Black "KarstenHansch"]
[Result "1-0"]
[WhiteElo "2827"]
[BlackElo "2415"]
[TimeControl "180+1"]
[EndTime "13:50:02 PDT"]
[Termination "exoticprincess won by resignation"]

1. d4 {[%clk 0:03:00.9]} 1... d5 {[%clk 0:02:58.8]} 2. c4 {[%clk 0:02:58.7]}
2... e6 {[%clk 0:02:59.1]} 3. Nc3 {[%clk 0:02:58.4]} 3... Nf6 {[%clk 0:02:58.7]}
4. Bg5 {[%clk 0:02:58.4]} 4... Be7 {[%clk 0:02:58.5]} 5. e3 {[%clk 0:02:58.8]}
5... Nbd7 {[%clk 0:02:55.6]} 6. Rc1 {[%clk 0:02:58.6]} 6... h6 {[%clk
0:02:53.7]} 7. Bxf6 {[%clk 0:02:57.6]} 7... Nxf6 {[%clk 0:02:52.2]} 8. cxd5
{[%clk 0:02:57.5]} 8... exd5 {[%clk 0:02:50.5]} 9. Bd3 {[%clk 0:02:57.2]} 9...
O-O {[%clk 0:02:46.2]} 10. Nge2 {[%clk 0:02:57.5]} 10... c6 {[%clk 0:02:40.2]}
11. O-O {[%clk 0:02:57.7]} 11... Re8 {[%clk 0:02:39.9]} 12. Ng3 {[%clk
0:02:57.4]} 12... Bf8 {[%clk 0:02:39.5]} 13. Bf5 {[%clk 0:02:57.6]} 13... Bxf5
{[%clk 0:02:38.1]} 14. Nxf5 {[%clk 0:02:58.5]} 14... Qd7 {[%clk 0:02:30]} 15.
Qf3 {[%clk 0:02:58.4]} 15... g6 {[%clk 0:02:25.3]} 16. Ng3 {[%clk 0:02:50.6]}
16... Bg7 {[%clk 0:02:21.8]} 17. Rfd1 {[%clk 0:02:49.3]} 17... h5 {[%clk
0:02:21.7]} 18. h3 {[%clk 0:02:48.9]} 18... h4 {[%clk 0:02:11.1]} 19. Nge2
{[%clk 0:02:47.9]} 19... Ne4 {[%clk 0:02:11.3]} 20. Nf4 {[%clk 0:02:42.7]} 20...
Bh6 {[%clk 0:02:01.9]} 21. Nd3 {[%clk 0:02:41.8]} 21... Re7 {[%clk 0:01:50.1]}
22. Rc2 {[%clk 0:02:42]} 22... Rae8 {[%clk 0:01:48.8]} 23. Ne5 {[%clk
0:02:41.9]} 23... Qf5 {[%clk 0:01:31.7]} 24. Qxf5 {[%clk 0:02:36.5]} 24... gxf5
{[%clk 0:01:32.6]} 25. Ne2 {[%clk 0:02:32.4]} 25... f4 {[%clk 0:01:04.3]} 26.
Ng4 {[%clk 0:02:22]} 26... fxe3 {[%clk 0:00:42.4]} 27. Nxh6+ {[%clk 0:02:19.1]}
27... Kh7 {[%clk 0:00:42.3]} 28. Nf5 {[%clk 0:02:19.2]} 28... exf2+ {[%clk
0:00:40.7]} 29. Kf1 {[%clk 0:02:19.4]} 29... Ng3+ {[%clk 0:00:23.3]} 30. Nfxg3
{[%clk 0:02:14]} 30... hxg3 {[%clk 0:00:22.9]} 31. Rd3 {[%clk 0:02:14.5]} 31...
Re3 {[%clk 0:00:19.4]} 32. Rxe3 {[%clk 0:02:14.8]} 32... Rxe3 {[%clk 0:00:20.1]}
33. Rc3 {[%clk 0:02:15.6]} 1-0

[Event "*** SCC Grand Prix: Titled Tuesday Blitz"]
[Site "Chess.com"]
[Date "2020.08.04"]
[Round "1"]
[White "BilodeauA"]
[Black "amatatanav"]
[Result "1-0"]
[WhiteElo "2862"]
[BlackElo "2430"]
[TimeControl "180+1"]
[EndTime "13:50:14 PDT"]
[Termination "BilodeauA won on time"]

1. d4 {[%clk 0:03:00.9]} 1... Nf6 {[%clk 0:02:59.6]} 2. Nc3 {[%clk 0:03:01.5]}
2... d5 {[%clk 0:02:59.4]} 3. Bf4 {[%clk 0:03:02.2]} 3... c5 {[%clk 0:02:56.6]}
4. e3 {[%clk 0:03:00.6]} 4... a6 {[%clk 0:02:45.5]} 5. Nf3 {[%clk 0:03:00.7]}
5... b5 {[%clk 0:02:35.1]} 6. dxc5 {[%clk 0:02:52.2]} 6... e6 {[%clk 0:02:28.8]}
7. b4 {[%clk 0:02:50.6]} 7... Nc6 {[%clk 0:02:02]} 8. a3 {[%clk 0:02:43.8]} 8...
Nh5 {[%clk 0:01:48.8]} 9. Bg5 {[%clk 0:02:34.5]} 9... f6 {[%clk 0:01:39.9]} 10.
Bh4 {[%clk 0:02:30.7]} 10... g6 {[%clk 0:01:06.8]} 11. Nd4 {[%clk 0:02:30.6]}
11... Bd7 {[%clk 0:00:55.6]} 12. Be2 {[%clk 0:02:26.7]} 12... Ng7 {[%clk
0:00:52.1]} 13. O-O {[%clk 0:02:27]} 13... h5 {[%clk 0:00:38.4]} 14. Bd3 {[%clk
0:02:10.3]} 14... Kf7 {[%clk 0:00:36.1]} 15. f4 {[%clk 0:02:01.2]} 15... Nf5
{[%clk 0:00:22.6]} 16. Bf2 {[%clk 0:01:45.8]} 16... Qc7 {[%clk 0:00:19.8]} 17.
Qf3 {[%clk 0:01:44.2]} 17... Nce7 {[%clk 0:00:07.4]} 18. a4 {[%clk 0:01:41.7]}
18... bxa4 {[%clk 0:00:06.2]} 19. Nxa4 {[%clk 0:01:42.5]} 19... Nxd4 {[%clk
0:00:01.7]} 20. exd4 {[%clk 0:01:42.4]} 20... Bxa4 {[%clk 0:00:02.1]} 21. Rxa4
{[%clk 0:01:43.3]} 21... Nc6 {[%clk 0:00:02.2]} 22. b5 {[%clk 0:01:42.7]} 1-0

[Event "*** SCC Grand Prix: Titled Tuesday Blitz"]
[Site "Chess.com"]
[Date "2020.08.04"]
[Round "1"]
[White "goofypenguin96"]
[Black "wild_cat99"]
[Result "0-1"]
[WhiteElo "2330"]
[BlackElo "2697"]
[TimeControl "180+1"]
[EndTime "13:50:24 PDT"]
[Termination "wild_cat99 won by resignation"]

1. e4 {[%clk 0:03:00.9]} 1... c5 {[%clk 0:02:58.7]} 2. Nf3 {[%clk 0:03:00.9]}
2... d6 {[%clk 0:02:58.7]} 3. c3 {[%clk 0:03:01.4]} 3... Nf6 {[%clk 0:02:58.3]}
4. h3 {[%clk 0:03:01.9]} 4... e6 {[%clk 0:02:57]} 5. Bd3 {[%clk 0:03:01.9]} 5...
Nbd7 {[%clk 0:02:56.6]} 6. Bc2 {[%clk 0:03:02.3]} 6... Qc7 {[%clk 0:02:56]} 7.
d4 {[%clk 0:03:02.1]} 7... cxd4 {[%clk 0:02:56.9]} 8. cxd4 {[%clk 0:03:02.6]}
8... Be7 {[%clk 0:02:56.6]} 9. Nc3 {[%clk 0:03:02.8]} 9... a6 {[%clk 0:02:55.5]}
10. O-O {[%clk 0:03:03.2]} 10... b5 {[%clk 0:02:55.8]} 11. a3 {[%clk 0:03:02.2]}
11... Bb7 {[%clk 0:02:56]} 12. Bf4 {[%clk 0:03:01.7]} 12... O-O {[%clk
0:02:55.1]} 13. Qd3 {[%clk 0:02:56]} 13... g6 {[%clk 0:02:38.2]} 14. e5 {[%clk
0:02:48.3]} 14... dxe5 {[%clk 0:02:30.2]} 15. Nxe5 {[%clk 0:02:48.3]} 15... Nxe5
{[%clk 0:02:29.6]} 16. Bxe5 {[%clk 0:02:49.2]} 16... Qc6 {[%clk 0:02:28.4]} 17.
Qg3 {[%clk 0:02:37.5]} 17... Nh5 {[%clk 0:02:22]} 18. Qh2 {[%clk 0:02:35.2]}
18... f6 {[%clk 0:02:05.7]} 19. Be4 {[%clk 0:02:27.4]} 19... Qd7 {[%clk
0:02:06]} 20. Bxb7 {[%clk 0:02:21]} 20... Qxb7 {[%clk 0:02:06.9]} 21. Bd6 {[%clk
0:02:21.4]} 21... Rad8 {[%clk 0:01:56.4]} 22. Bxe7 {[%clk 0:02:19.7]} 22... Qxe7
{[%clk 0:01:57.3]} 23. Rad1 {[%clk 0:02:19.9]} 23... Qb7 {[%clk 0:01:42]} 24.
Rfe1 {[%clk 0:02:17.6]} 24... Ng7 {[%clk 0:01:38.9]} 25. Ne4 {[%clk 0:02:15.5]}
25... e5 {[%clk 0:01:32.4]} 26. d5 {[%clk 0:01:42.7]} 26... Rxd5 {[%clk
0:01:29.4]} 27. Nc3 {[%clk 0:01:31.9]} 27... Rd4 {[%clk 0:01:22]} 28. Rxd4
{[%clk 0:01:22.4]} 28... exd4 {[%clk 0:01:22.9]} 29. Ne4 {[%clk 0:01:23.1]}
29... d3 {[%clk 0:01:18.7]} 30. Qd6 {[%clk 0:01:20]} 30... Nf5 {[%clk
0:01:07.1]} 31. Nxf6+ {[%clk 0:01:09.8]} 31... Kg7 {[%clk 0:01:03.7]} 32. Ne8+
{[%clk 0:01:06.2]} 32... Rxe8 {[%clk 0:01:01.1]} 33. Rxe8 {[%clk 0:01:07.1]}
33... Nxd6 {[%clk 0:00:57.9]} 0-1

[Event "*** SCC Grand Prix: Titled Tuesday Blitz"]
[Site "Chess.com"]
[Date "2020.08.04"]
[Round "1"]
[White "StoreySniper"]
[Black "IMHansNiemann"]
[Result "0-1"]
[WhiteElo "2448"]
[BlackElo "2887"]
[TimeControl "180+1"]
[EndTime "13:50:28 PDT"]
[Termination "IMHansNiemann won by resignation"]

1. e4 {[%clk 0:02:38.5]} 1... e6 {[%clk 0:02:59.4]} 2. Nc3 {[%clk 0:02:33.5]}
2... d5 {[%clk 0:02:38]} 3. exd5 {[%clk 0:02:32.4]} 3... exd5 {[%clk 0:02:35.6]}
4. Nf3 {[%clk 0:02:32.6]} 4... Nf6 {[%clk 0:02:34]} 5. d4 {[%clk 0:02:31.8]}
5... c6 {[%clk 0:02:33.4]} 6. h3 {[%clk 0:02:29.7]} 6... Bb4 {[%clk 0:02:31.5]}
7. Bd3 {[%clk 0:02:27.5]} 7... Ne4 {[%clk 0:02:29.2]} 8. Bd2 {[%clk 0:02:22.2]}
8... Nxd2 {[%clk 0:02:28.3]} 9. Qxd2 {[%clk 0:02:18.7]} 9... Qe7+ {[%clk
0:02:27]} 10. Qe2 {[%clk 0:02:14]} 10... Qxe2+ {[%clk 0:02:23.6]} 11. Kxe2
{[%clk 0:02:12.6]} 11... O-O {[%clk 0:02:22.3]} 12. Rhe1 {[%clk 0:02:10.6]}
12... Nd7 {[%clk 0:02:19.3]} 13. Kf1 {[%clk 0:02:08.2]} 13... Nb6 {[%clk
0:02:18.2]} 14. Re2 {[%clk 0:01:59.8]} 14... h6 {[%clk 0:02:15.8]} 15. Nd1
{[%clk 0:01:55.3]} 15... Bd6 {[%clk 0:02:08.1]} 16. c3 {[%clk 0:01:55.2]} 16...
Be6 {[%clk 0:02:05.1]} 17. Ne3 {[%clk 0:01:54.2]} 17... Rae8 {[%clk 0:02:05.6]}
18. Nf5 {[%clk 0:01:52.6]} 18... Bc7 {[%clk 0:02:03.8]} 19. Rae1 {[%clk
0:01:45.8]} 19... Nd7 {[%clk 0:02:03.2]} 20. h4 {[%clk 0:01:15.2]} 20... g6
{[%clk 0:01:57.2]} 21. Ng3 {[%clk 0:01:07.6]} 21... Nf6 {[%clk 0:01:50.9]} 22.
Bxg6 {[%clk 0:01:04.9]} 22... fxg6 {[%clk 0:01:45.3]} 23. Rxe6 {[%clk
0:01:04.1]} 23... Rxe6 {[%clk 0:01:45.7]} 24. Rxe6 {[%clk 0:01:04.6]} 24... Kf7
{[%clk 0:01:46.1]} 25. Re2 {[%clk 0:00:54.2]} 25... Bxg3 {[%clk 0:01:46.4]} 26.
fxg3 {[%clk 0:00:53.9]} 26... Ne4 {[%clk 0:01:47.1]} 27. Ke1 {[%clk 0:00:44.4]}
27... Nxg3 {[%clk 0:01:44.3]} 28. Rf2 {[%clk 0:00:39.7]} 28... Kg7 {[%clk
0:01:41.5]} 29. Ne5 {[%clk 0:00:38.6]} 29... Nf5 {[%clk 0:01:40.8]} 30. Kd2
{[%clk 0:00:29.9]} 30... h5 {[%clk 0:01:36.1]} 31. Nf3 {[%clk 0:00:26.5]} 31...
Nxh4 {[%clk 0:01:35.4]} 32. Re2 {[%clk 0:00:23.9]} 32... Nxf3+ {[%clk
0:01:35.3]} 33. gxf3 {[%clk 0:00:23.7]} 33... Rxf3 {[%clk 0:01:36.2]} 0-1

[Event "*** SCC Grand Prix: Titled Tuesday Blitz"]
[Site "Chess.com"]
[Date "2020.08.04"]
[Round "1"]
[White "Quiet_Desperation"]
[Black "dlp300"]
[Result "0-1"]
[WhiteElo "2254"]
[BlackElo "2584"]
[TimeControl "180+1"]
[EndTime "13:50:31 PDT"]
[Termination "dlp300 won by resignation"]

1. e4 {[%clk 0:02:59]} 1... c6 {[%clk 0:02:42.1]} 2. Nf3 {[%clk 0:02:57.1]} 2...
d5 {[%clk 0:02:42.7]} 3. Nc3 {[%clk 0:02:57.4]} 3... Bg4 {[%clk 0:02:41.9]} 4.
h3 {[%clk 0:02:57]} 4... Bxf3 {[%clk 0:02:41.3]} 5. Qxf3 {[%clk 0:02:57]} 5...
Nf6 {[%clk 0:02:42.2]} 6. e5 {[%clk 0:02:51.5]} 6... Nfd7 {[%clk 0:02:40.8]} 7.
d4 {[%clk 0:02:51.6]} 7... e6 {[%clk 0:02:41.2]} 8. Be3 {[%clk 0:02:50.8]} 8...
c5 {[%clk 0:02:41.6]} 9. Bb5 {[%clk 0:02:44.1]} 9... Nc6 {[%clk 0:02:40.3]} 10.
Bxc6 {[%clk 0:02:39.4]} 10... bxc6 {[%clk 0:02:39.9]} 11. O-O {[%clk 0:02:20]}
11... cxd4 {[%clk 0:02:38.8]} 12. Bxd4 {[%clk 0:02:19.6]} 12... c5 {[%clk
0:02:39.2]} 13. Nxd5 {[%clk 0:02:09.5]} 13... cxd4 {[%clk 0:02:37.6]} 14. Rfe1
{[%clk 0:02:08.2]} 14... exd5 {[%clk 0:02:36.1]} 15. e6 {[%clk 0:02:01.6]} 15...
Nf6 {[%clk 0:02:34.8]} 16. g4 {[%clk 0:01:53.3]} 16... fxe6 {[%clk 0:02:22.7]}
17. Rxe6+ {[%clk 0:01:49]} 17... Kf7 {[%clk 0:02:19.8]} 18. Rae1 {[%clk
0:01:46.5]} 18... h6 {[%clk 0:02:19.4]} 19. h4 {[%clk 0:01:39.6]} 19... Qc7
{[%clk 0:02:18.4]} 20. Rxf6+ {[%clk 0:01:34.3]} 20... gxf6 {[%clk 0:02:13.6]}
21. Qxd5+ {[%clk 0:01:33.1]} 21... Kg7 {[%clk 0:02:11.8]} 22. Qxa8 {[%clk
0:01:32.7]} 22... Bb4 {[%clk 0:02:10.3]} 23. Re8 {[%clk 0:01:30.6]} 23... Rxe8
{[%clk 0:02:09.6]} 24. Qxe8 {[%clk 0:01:29.8]} 24... Bd6 {[%clk 0:02:06.8]} 25.
h5 {[%clk 0:01:27.1]} 25... Qf7 {[%clk 0:02:03.8]} 26. Qe4 {[%clk 0:01:25.1]}
26... Be5 {[%clk 0:02:00.2]} 27. f4 {[%clk 0:01:25]} 27... Bc7 {[%clk
0:01:59.5]} 28. b4 {[%clk 0:01:19]} 28... Bb6 {[%clk 0:01:52.2]} 29. Kh2 {[%clk
0:01:14.8]} 29... Kf8 {[%clk 0:01:45.9]} 30. a4 {[%clk 0:01:12.1]} 30... Qe7
{[%clk 0:01:42.3]} 31. Qxe7+ {[%clk 0:00:52.2]} 31... Kxe7 {[%clk 0:01:42.5]}
32. a5 {[%clk 0:00:53.1]} 32... Bc7 {[%clk 0:01:41.9]} 33. Kg3 {[%clk
0:00:53.5]} 33... a6 {[%clk 0:01:38.4]} 34. Kf3 {[%clk 0:00:53.2]} 34... Bd6
{[%clk 0:01:38.3]} 35. Ke4 {[%clk 0:00:52.3]} 35... Bxb4 {[%clk 0:01:38.3]} 36.
Kxd4 {[%clk 0:00:50.8]} 36... Bxa5 {[%clk 0:01:38]} 37. Ke4 {[%clk 0:00:46.6]}
37... Bc3 {[%clk 0:01:35.4]} 0-1